[Event "*** Titled Tuesday Blitz"]
[Site "Chess.com"]
[Date "2019.08.06"]
[Round "5"]
[White "tteshan"]
[Black "GeorgeTen"]
[Result "0-1"]
[WhiteElo "2174"]
[BlackElo "2256"]
[TimeControl "180+2"]
[EndTime "14:05:10 PDT"]
[Termination "GeorgeTen won by checkmate"]

1. d4 {[%clk 0:03:01.9]} 1... d5 {[%clk 0:03:00.2]} 2. c4 {[%clk 0:02:58]} 2...
dxc4 {[%clk 0:03:00.7]} 3. e3 {[%clk 0:02:57.9]} 3... e6 {[%clk 0:02:58.5]} 4.
Bxc4 {[%clk 0:02:58]} 4... Nf6 {[%clk 0:02:59.9]} 5. Nc3 {[%clk 0:02:59.1]} 5...
c5 {[%clk 0:03:01.1]} 6. Nf3 {[%clk 0:02:57.5]} 6... a6 {[%clk 0:03:01.9]} 7.
O-O {[%clk 0:02:56.2]} 7... b5 {[%clk 0:03:00.5]} 8. Be2 {[%clk 0:02:57.2]} 8...
Bb7 {[%clk 0:03:01.2]} 9. dxc5 {[%clk 0:02:56]} 9... Qxd1 {[%clk 0:03:00.8]} 10.
Rxd1 {[%clk 0:02:57.9]} 10... Bxc5 {[%clk 0:03:01.1]} 11. a3 {[%clk 0:02:53.5]}
11... Nbd7 {[%clk 0:02:54.2]} 12. b4 {[%clk 0:02:53]} 12... Bb6 {[%clk
0:02:55.7]} 13. Bb2 {[%clk 0:02:52.4]} 13... Ke7 {[%clk 0:02:57.2]} 14. Nd2
{[%clk 0:02:42.8]} 14... Rac8 {[%clk 0:02:54]} 15. Bf3 {[%clk 0:02:42.1]} 15...
Bxf3 {[%clk 0:02:52.8]} 16. Nxf3 {[%clk 0:02:44]} 16... Rc4 {[%clk 0:02:51.6]}
17. Rac1 {[%clk 0:02:30.2]} 17... Rhc8 {[%clk 0:02:51.8]} 18. h3 {[%clk
0:02:26.5]} 18... h6 {[%clk 0:02:29.7]} 19. Ne2 {[%clk 0:02:23.2]} 19... Nd5
{[%clk 0:02:22.7]} 20. Nfd4 {[%clk 0:02:17.7]} 20... N7f6 {[%clk 0:02:04.9]} 21.
Rxc4 {[%clk 0:02:09.9]} 21... Rxc4 {[%clk 0:02:03.6]} 22. Rc1 {[%clk 0:02:09]}
22... Rxc1+ {[%clk 0:01:57.2]} 23. Bxc1 {[%clk 0:02:10.9]} 23... Ne4 {[%clk
0:01:52.5]} 24. f3 {[%clk 0:02:02.8]} 24... Nd6 {[%clk 0:01:42.5]} 25. Kf2
{[%clk 0:01:57.6]} 25... Nc4 {[%clk 0:01:41.2]} 26. e4 {[%clk 0:01:51.9]} 26...
Nc3 {[%clk 0:01:41.9]} 27. Ke1 {[%clk 0:01:49.1]} 27... Nb1 {[%clk 0:01:33.5]}
28. Nc2 {[%clk 0:01:39.1]} 28... a5 {[%clk 0:01:25.6]} 29. Nf4 {[%clk
0:01:28.5]} 29... a4 {[%clk 0:01:15.2]} 30. Nd3 {[%clk 0:01:23.9]} 30... Kd6
{[%clk 0:01:11.6]} 31. Ke2 {[%clk 0:01:20.4]} 31... e5 {[%clk 0:01:11]} 32. Nf2
{[%clk 0:00:58.7]} 32... g6 {[%clk 0:00:45.8]} 33. Ng4 {[%clk 0:00:51.7]} 33...
h5 {[%clk 0:00:46.6]} 34. Nf6 {[%clk 0:00:52.5]} 34... Ke6 {[%clk 0:00:45.9]}
35. Nd5 {[%clk 0:00:53.6]} 35... Bd8 {[%clk 0:00:43.2]} 36. Kd3 {[%clk
0:00:46.7]} 36... f5 {[%clk 0:00:43.6]} 37. exf5+ {[%clk 0:00:46.9]} 37... Kxd5
{[%clk 0:00:41.6]} 38. fxg6 {[%clk 0:00:42.6]} 38... Bf6 {[%clk 0:00:43.1]} 39.
Ne3+ {[%clk 0:00:39.4]} 39... Nxe3 {[%clk 0:00:42.9]} 40. Bxe3 {[%clk
0:00:41.3]} 40... Nxa3 {[%clk 0:00:41.8]} 41. Bh6 {[%clk 0:00:35.2]} 41... Nc4
{[%clk 0:00:38.5]} 42. g7 {[%clk 0:00:32.1]} 42... Bxg7 {[%clk 0:00:39.2]} 43.
Bxg7 {[%clk 0:00:34]} 43... a3 {[%clk 0:00:40.7]} 44. f4 {[%clk 0:00:26.8]}
44... a2 {[%clk 0:00:40.1]} 45. fxe5 {[%clk 0:00:26.8]} 45... a1=Q {[%clk
0:00:39.9]} 46. Ke2 {[%clk 0:00:27]} 46... Nxe5 {[%clk 0:00:35.3]} 47. Bf6
{[%clk 0:00:24.3]} 47... Qb2+ {[%clk 0:00:35.2]} 48. Ke3 {[%clk 0:00:18.6]}
48... Nc4+ {[%clk 0:00:33.3]} 49. Kf3 {[%clk 0:00:19.9]} 49... Qxf6+ {[%clk
0:00:34.5]} 50. Kg3 {[%clk 0:00:21.2]} 50... Ne5 {[%clk 0:00:34.7]} 51. h4
{[%clk 0:00:21.7]} 51... Qf5 {[%clk 0:00:35.5]} 52. Kh2 {[%clk 0:00:22.4]} 52...
Qg4 {[%clk 0:00:35]} 53. g3 {[%clk 0:00:22.9]} 53... Ke4 {[%clk 0:00:36.1]} 54.
Kg2 {[%clk 0:00:24.2]} 54... Ke3 {[%clk 0:00:36.7]} 55. Kh2 {[%clk 0:00:25.4]}
55... Kf3 {[%clk 0:00:34.6]} 56. Kh1 {[%clk 0:00:25.2]} 56... Qh3+ {[%clk
0:00:36]} 57. Kg1 {[%clk 0:00:25.5]} 57... Qg2# {[%clk 0:00:37.9]} 0-1

[Event "*** Titled Tuesday Blitz"]
[Site "Chess.com"]
[Date "2019.08.06"]
[Round "5"]
[White "EugeneRougon"]
[Black "Heineccius"]
[Result "0-1"]
[WhiteElo "2648"]
[BlackElo "2546"]
[TimeControl "180+2"]
[EndTime "14:05:12 PDT"]
[Termination "Heineccius won on time"]

1. e4 {[%clk 0:03:01.9]} 1... c5 {[%clk 0:03:00.6]} 2. Nf3 {[%clk 0:03:01]} 2...
e6 {[%clk 0:03:01.3]} 3. g3 {[%clk 0:03:01.3]} 3... d5 {[%clk 0:03:00.3]} 4.
exd5 {[%clk 0:03:01.3]} 4... Qxd5 {[%clk 0:02:54.8]} 5. Bg2 {[%clk 0:02:59.7]}
5... Nc6 {[%clk 0:02:52.7]} 6. O-O {[%clk 0:02:59.4]} 6... Qd7 {[%clk
0:02:49.2]} 7. d3 {[%clk 0:02:31.5]} 7... Nf6 {[%clk 0:02:47.5]} 8. Nbd2 {[%clk
0:02:30.3]} 8... Be7 {[%clk 0:02:39.6]} 9. Nc4 {[%clk 0:02:31.1]} 9... O-O
{[%clk 0:02:40]} 10. a4 {[%clk 0:02:10.3]} 10... Nd5 {[%clk 0:02:26.6]} 11. a5
{[%clk 0:02:06.8]} 11... Rb8 {[%clk 0:02:21.4]} 12. Re1 {[%clk 0:02:01.6]} 12...
b5 {[%clk 0:01:57.9]} 13. axb6 {[%clk 0:02:01.7]} 13... axb6 {[%clk 0:01:58.9]}
14. Bd2 {[%clk 0:02:03.6]} 14... Qc7 {[%clk 0:01:39]} 15. Nce5 {[%clk
0:01:35.2]} 15... Bb7 {[%clk 0:01:31.4]} 16. Nxc6 {[%clk 0:01:16.8]} 16... Bxc6
{[%clk 0:01:27]} 17. Ne5 {[%clk 0:01:18.7]} 17... Bb7 {[%clk 0:01:24.2]} 18. Qg4
{[%clk 0:01:05.7]} 18... Nf6 {[%clk 0:00:59.9]} 19. Qe2 {[%clk 0:01:05.6]} 19...
Bxg2 {[%clk 0:01:00.3]} 20. Kxg2 {[%clk 0:01:07.5]} 20... Ra8 {[%clk 0:00:59.3]}
21. Qf3 {[%clk 0:01:07.3]} 21... Rxa1 {[%clk 0:00:50.6]} 22. Rxa1 {[%clk
0:01:09.2]} 22... Qxe5 {[%clk 0:00:50.2]} 23. Ra7 {[%clk 0:01:09.9]} 23... Qd6
{[%clk 0:00:32.6]} 24. Qb7 {[%clk 0:00:53]} 24... Bd8 {[%clk 0:00:28.1]} 25. f3
{[%clk 0:00:30.3]} 25... Qe5 {[%clk 0:00:25.1]} 26. Bc3 {[%clk 0:00:15.8]} 26...
Qe2+ {[%clk 0:00:24.1]} 27. Kg1 {[%clk 0:00:17.4]} 27... Nd5 {[%clk 0:00:24.5]}
28. Ra1 {[%clk 0:00:11.1]} 28... Ne3 {[%clk 0:00:22.4]} 29. f4 {[%clk
0:00:12.2]} 29... Ng4 {[%clk 0:00:16.8]} 30. Qg2 {[%clk 0:00:11.2]} 30... Qxg2+
{[%clk 0:00:14.3]} 31. Kxg2 {[%clk 0:00:13.1]} 31... Ne3+ {[%clk 0:00:15.7]} 32.
Kf3 {[%clk 0:00:12.7]} 32... Nxc2 {[%clk 0:00:17.1]} 33. Ra7 {[%clk 0:00:14.4]}
33... Bf6 {[%clk 0:00:16.5]} 34. Rb7 {[%clk 0:00:15.6]} 34... Nd4+ {[%clk
0:00:15.2]} 35. Kf2 {[%clk 0:00:14.6]} 35... Rd8 {[%clk 0:00:14.3]} 36. Rxb6
{[%clk 0:00:14.3]} 36... g5 {[%clk 0:00:13.2]} 37. fxg5 {[%clk 0:00:13.1]} 37...
Bxg5 {[%clk 0:00:14.6]} 38. Rb7 {[%clk 0:00:15]} 38... Bf6 {[%clk 0:00:14.4]}
39. Ba5 {[%clk 0:00:08.9]} 39... Rd5 {[%clk 0:00:14.2]} 40. g4 {[%clk
0:00:08.2]} 40... h5 {[%clk 0:00:13.3]} 41. h3 {[%clk 0:00:08.3]} 41... Kg7
{[%clk 0:00:13.4]} 42. Bc3 {[%clk 0:00:05.6]} 42... h4 {[%clk 0:00:12.8]} 0-1

[Event "*** Titled Tuesday Blitz"]
[Site "Chess.com"]
[Date "2019.08.06"]
[Round "5"]
[White "OlympusMons95"]
[Black "imdvb6307"]
[Result "1-0"]
[WhiteElo "2643"]
[BlackElo "2411"]
[TimeControl "180+2"]
[EndTime "14:05:14 PDT"]
[Termination "OlympusMons95 won by resignation"]

1. Nf3 {[%clk 0:03:01.9]} 1... d5 {[%clk 0:03:00]} 2. e3 {[%clk 0:03:02.1]} 2...
Nf6 {[%clk 0:03:00.3]} 3. c4 {[%clk 0:03:03.5]} 3... c6 {[%clk 0:03:00.5]} 4.
Nc3 {[%clk 0:03:03.6]} 4... Bg4 {[%clk 0:03:00.6]} 5. Qb3 {[%clk 0:03:01.7]}
5... Qb6 {[%clk 0:02:56.2]} 6. Ne5 {[%clk 0:02:53.9]} 6... Be6 {[%clk 0:02:55]}
7. d4 {[%clk 0:02:54.7]} 7... Nbd7 {[%clk 0:02:43]} 8. Nxd7 {[%clk 0:02:49.9]}
8... Nxd7 {[%clk 0:02:40.1]} 9. cxd5 {[%clk 0:02:46.1]} 9... Qxb3 {[%clk
0:02:40.4]} 10. axb3 {[%clk 0:02:46.8]} 10... Bxd5 {[%clk 0:02:41]} 11. e4
{[%clk 0:02:24.1]} 11... Bxb3 {[%clk 0:02:29.9]} 12. Ra3 {[%clk 0:02:08.8]}
12... Be6 {[%clk 0:02:29.8]} 13. d5 {[%clk 0:02:10.1]} 13... Bg4 {[%clk
0:02:30.4]} 14. f3 {[%clk 0:02:06.8]} 14... Bh5 {[%clk 0:02:30.3]} 15. Be3
{[%clk 0:02:01.3]} 15... e5 {[%clk 0:01:59.5]} 16. Rxa7 {[%clk 0:01:50.5]} 16...
Rxa7 {[%clk 0:01:59]} 17. Bxa7 {[%clk 0:01:52.4]} 17... Bc5 {[%clk 0:01:59.5]}
18. Bxc5 {[%clk 0:01:51.4]} 18... Nxc5 {[%clk 0:02:00.5]} 19. h4 {[%clk
0:01:39.9]} 19... f6 {[%clk 0:02:00.8]} 20. Bc4 {[%clk 0:01:38.4]} 20... b5
{[%clk 0:01:02.8]} 21. b4 {[%clk 0:01:20.4]} 21... Na6 {[%clk 0:00:55.2]} 22.
Nxb5 {[%clk 0:01:20.2]} 22... Nxb4 {[%clk 0:00:56]} 23. Nd6+ {[%clk 0:01:13.4]}
23... Kd7 {[%clk 0:00:50.3]} 24. Nf5 {[%clk 0:01:13.4]} 24... cxd5 {[%clk
0:00:48]} 25. exd5 {[%clk 0:01:04.4]} 25... Bf7 {[%clk 0:00:42.5]} 26. Kf2
{[%clk 0:00:57.8]} 26... g6 {[%clk 0:00:17.6]} 27. Ne3 {[%clk 0:00:58]} 27... f5
{[%clk 0:00:16.6]} 28. Rb1 {[%clk 0:00:57.5]} 28... Rb8 {[%clk 0:00:17.6]} 29.
g3 {[%clk 0:00:42.2]} 29... f4 {[%clk 0:00:16.5]} 30. Ng4 {[%clk 0:00:36.5]}
30... Kd6 {[%clk 0:00:17.7]} 31. Nf6 {[%clk 0:00:37.5]} 31... fxg3+ {[%clk
0:00:16.5]} 32. Kxg3 {[%clk 0:00:38.4]} 32... h6 {[%clk 0:00:16.5]} 33. Ne4+
{[%clk 0:00:38]} 33... Kd7 {[%clk 0:00:15.9]} 34. Rb2 {[%clk 0:00:28]} 34... Rb6
{[%clk 0:00:16.6]} 35. Nc5+ {[%clk 0:00:26.4]} 35... Kc7 {[%clk 0:00:16.4]} 36.
Rxb4 {[%clk 0:00:22.5]} 36... Rxb4 {[%clk 0:00:09.3]} 37. Na6+ {[%clk
0:00:23.7]} 37... Kb6 {[%clk 0:00:09.9]} 38. Nxb4 {[%clk 0:00:25.6]} 38... Kc5
{[%clk 0:00:10.8]} 39. d6 {[%clk 0:00:26.8]} 39... Be8 {[%clk 0:00:06.2]} 40.
Nd5 {[%clk 0:00:26.8]} 40... Kxd6 {[%clk 0:00:02.8]} 41. Nf6 {[%clk 0:00:27.1]}
41... Bc6 {[%clk 0:00:03.1]} 42. Bd3 {[%clk 0:00:27.7]} 42... g5 {[%clk
0:00:03.8]} 43. h5 {[%clk 0:00:28]} 43... Ke6 {[%clk 0:00:03.8]} 44. Ng4 {[%clk
0:00:26]} 44... Be8 {[%clk 0:00:03.6]} 45. Bg6 {[%clk 0:00:23.2]} 45... Bxg6
{[%clk 0:00:04.5]} 46. hxg6 {[%clk 0:00:25.1]} 46... h5 {[%clk 0:00:06.1]} 47.
Nxe5 {[%clk 0:00:25.2]} 47... Kf6 {[%clk 0:00:07.4]} 48. f4 {[%clk 0:00:22.6]}
48... g4 {[%clk 0:00:03.9]} 49. Kh4 {[%clk 0:00:21.5]} 49... Ke6 {[%clk
0:00:03.1]} 50. g7 {[%clk 0:00:21.2]} 1-0

[Event "*** Titled Tuesday Blitz"]
[Site "Chess.com"]
[Date "2019.08.06"]
[Round "5"]
[White "sergiochess83"]
[Black "MITerryble"]
[Result "1-0"]
[WhiteElo "2919"]
[BlackElo "2875"]
[TimeControl "180+2"]
[EndTime "14:05:16 PDT"]
[Termination "sergiochess83 won by resignation"]

1. e4 {[%clk 0:03:01.9]} 1... e6 {[%clk 0:02:55.5]} 2. d4 {[%clk 0:03:01.3]}
2... d5 {[%clk 0:02:56.7]} 3. Nd2 {[%clk 0:03:01.3]} 3... Be7 {[%clk 0:02:53.5]}
4. Ngf3 {[%clk 0:02:52]} 4... Nf6 {[%clk 0:02:44.9]} 5. Bd3 {[%clk 0:02:50.6]}
5... c5 {[%clk 0:02:45.2]} 6. exd5 {[%clk 0:02:46.9]} 6... Qxd5 {[%clk
0:02:44.4]} 7. dxc5 {[%clk 0:02:45.6]} 7... Qxc5 {[%clk 0:02:46.3]} 8. O-O
{[%clk 0:02:44.7]} 8... Nbd7 {[%clk 0:02:46.8]} 9. Qe2 {[%clk 0:02:37.5]} 9...
O-O {[%clk 0:02:45]} 10. a4 {[%clk 0:02:30]} 10... b6 {[%clk 0:02:43]} 11. Ne4
{[%clk 0:02:12]} 11... Qc7 {[%clk 0:02:41]} 12. Nxf6+ {[%clk 0:02:02.6]} 12...
Nxf6 {[%clk 0:02:41.6]} 13. Ne5 {[%clk 0:01:52]} 13... Bb7 {[%clk 0:02:39.6]}
14. Bf4 {[%clk 0:01:50.8]} 14... Bd6 {[%clk 0:02:40.3]} 15. Bg3 {[%clk
0:01:51.7]} 15... Rfd8 {[%clk 0:02:14]} 16. Rfe1 {[%clk 0:01:51.1]} 16... Rac8
{[%clk 0:02:14.5]} 17. Rad1 {[%clk 0:01:44.6]} 17... Ba8 {[%clk 0:01:44.5]} 18.
Ba6 {[%clk 0:01:28.7]} 18... Bb7 {[%clk 0:01:45.3]} 19. Bxb7 {[%clk 0:01:24.1]}
19... Qxb7 {[%clk 0:01:47.2]} 20. Nxf7 {[%clk 0:01:24.5]} 20... Qxf7 {[%clk
0:01:34.4]} 21. Rxd6 {[%clk 0:01:24.6]} 21... Rxd6 {[%clk 0:01:17.2]} 22. Bxd6
{[%clk 0:01:25.5]} 22... Qd7 {[%clk 0:01:14.6]} 23. Be5 {[%clk 0:01:10.7]} 23...
Nd5 {[%clk 0:01:15.7]} 24. b3 {[%clk 0:01:04.5]} 24... Nb4 {[%clk 0:01:14.9]}
25. Bxg7 {[%clk 0:00:52.8]} 25... Rxc2 {[%clk 0:01:14.1]} 26. Qg4 {[%clk
0:00:42.2]} 26... Qxg7 {[%clk 0:01:14.6]} 27. Qxb4 {[%clk 0:00:39.8]} 27... Qf6
{[%clk 0:00:51.3]} 28. Qg4+ {[%clk 0:00:38.7]} 28... Kf8 {[%clk 0:00:52.7]} 29.
Qg3 {[%clk 0:00:37.4]} 29... Qc3 {[%clk 0:00:39.6]} 30. Qf4+ {[%clk 0:00:24.6]}
30... Kg7 {[%clk 0:00:36.8]} 31. Qg4+ {[%clk 0:00:24.3]} 31... Kh8 {[%clk
0:00:29.2]} 32. Qxe6 {[%clk 0:00:13.4]} 32... Rc1 {[%clk 0:00:30.4]} 33. Kf1
{[%clk 0:00:10.5]} 33... Qd3+ {[%clk 0:00:25.5]} 34. Qe2 {[%clk 0:00:09.5]}
34... Rxe1+ {[%clk 0:00:22.1]} 35. Kxe1 {[%clk 0:00:11.4]} 35... Qxb3 {[%clk
0:00:23.3]} 36. Qe5+ {[%clk 0:00:12.3]} 36... Kg8 {[%clk 0:00:24.1]} 37. Qb8+
{[%clk 0:00:13.5]} 37... Kg7 {[%clk 0:00:25]} 38. Qxa7+ {[%clk 0:00:14.5]} 38...
Kg6 {[%clk 0:00:26.6]} 39. Qd7 {[%clk 0:00:14.8]} 39... Qb1+ {[%clk 0:00:25.6]}
40. Qd1 {[%clk 0:00:10.2]} 40... Qe4+ {[%clk 0:00:19.4]} 41. Kf1 {[%clk
0:00:11.2]} 41... Qb4 {[%clk 0:00:18.9]} 42. Qc2+ {[%clk 0:00:09.8]} 42... Kf6
{[%clk 0:00:19.6]} 43. g3 {[%clk 0:00:10]} 43... h5 {[%clk 0:00:20.6]} 44. h4
{[%clk 0:00:10.7]} 44... Qd4 {[%clk 0:00:18.9]} 45. Qc6+ {[%clk 0:00:11.2]}
45... Kg7 {[%clk 0:00:19.1]} 46. Kg2 {[%clk 0:00:12.8]} 46... Qb4 {[%clk
0:00:19.3]} 47. Qd7+ {[%clk 0:00:10]} 47... Kg6 {[%clk 0:00:20.7]} 48. Qd3+
{[%clk 0:00:10.6]} 48... Kg7 {[%clk 0:00:21.5]} 49. Qb5 {[%clk 0:00:10.4]} 49...
Qd4 {[%clk 0:00:20.3]} 50. Qg5+ {[%clk 0:00:09.5]} 50... Kf8 {[%clk 0:00:20.5]}
51. Qxh5 {[%clk 0:00:09.6]} 51... Qe4+ {[%clk 0:00:20.9]} 52. Qf3+ {[%clk
0:00:10.3]} 1-0

[Event "*** Titled Tuesday Blitz"]
[Site "Chess.com"]
[Date "2019.08.06"]
[Round "5"]
[White "fancyknightmaneuvers"]
[Black "Thee-Chessboy"]
[Result "0-1"]
[WhiteElo "2538"]
[BlackElo "2412"]
[TimeControl "180+2"]
[EndTime "14:05:19 PDT"]
[Termination "Thee-Chessboy won by resignation"]

1. e4 {[%clk 0:03:01.9]} 1... c5 {[%clk 0:02:59.1]} 2. Nf3 {[%clk 0:03:01.7]}
2... d6 {[%clk 0:02:58]} 3. Bb5+ {[%clk 0:02:57]} 3... Bd7 {[%clk 0:02:57.4]} 4.
Bxd7+ {[%clk 0:02:57.1]} 4... Qxd7 {[%clk 0:02:58.6]} 5. c4 {[%clk 0:02:56.8]}
5... Nf6 {[%clk 0:02:58.4]} 6. Nc3 {[%clk 0:02:57.2]} 6... Nc6 {[%clk
0:02:57.9]} 7. d4 {[%clk 0:02:57.9]} 7... cxd4 {[%clk 0:02:58.4]} 8. Nxd4 {[%clk
0:02:59.8]} 8... g6 {[%clk 0:02:56.8]} 9. f3 {[%clk 0:02:58.4]} 9... Bg7 {[%clk
0:02:57.5]} 10. Be3 {[%clk 0:03:00]} 10... O-O {[%clk 0:02:57.6]} 11. O-O {[%clk
0:03:01.5]} 11... a6 {[%clk 0:02:58.1]} 12. Qe2 {[%clk 0:02:54.6]} 12... Nxe4
{[%clk 0:02:25.7]} 13. Nxe4 {[%clk 0:02:22.1]} 13... Nxd4 {[%clk 0:02:23.8]} 14.
Qd2 {[%clk 0:02:17.1]} 14... Nf5 {[%clk 0:02:21.6]} 15. Bf2 {[%clk 0:02:18.3]}
15... h5 {[%clk 0:02:11.7]} 16. Rfd1 {[%clk 0:02:18.6]} 16... Qc6 {[%clk
0:02:03.5]} 17. Rac1 {[%clk 0:02:18.1]} 17... Rac8 {[%clk 0:02:00.4]} 18. b4
{[%clk 0:02:18.2]} 18... Rfd8 {[%clk 0:01:58.1]} 19. Be3 {[%clk 0:01:18.7]}
19... b5 {[%clk 0:01:32.5]} 20. cxb5 {[%clk 0:00:58.3]} 20... Qxb5 {[%clk
0:01:32.3]} 21. Bg5 {[%clk 0:00:55.2]} 21... Kf8 {[%clk 0:01:00.6]} 22. h3
{[%clk 0:00:35.5]} 22... Nd4 {[%clk 0:00:47.1]} 23. Kh1 {[%clk 0:00:26.1]} 23...
Qe2 {[%clk 0:00:29.6]} 24. Qf4 {[%clk 0:00:09.5]} 24... Ne6 {[%clk 0:00:23.3]}
25. Qg3 {[%clk 0:00:10.3]} 25... Be5 {[%clk 0:00:20.7]} 26. Qh4 {[%clk
0:00:08.2]} 26... Nxg5 {[%clk 0:00:20.7]} 27. Qxg5 {[%clk 0:00:07.7]} 27... d5
{[%clk 0:00:19.6]} 28. Qh6+ {[%clk 0:00:08.6]} 28... Bg7 {[%clk 0:00:19.6]} 29.
Rxc8 {[%clk 0:00:03.7]} 29... Rxc8 {[%clk 0:00:20]} 30. Qd2 {[%clk 0:00:03]}
30... Qxd2 {[%clk 0:00:19.8]} 31. Nxd2 {[%clk 0:00:04.9]} 31... e6 {[%clk
0:00:20.5]} 32. Nb3 {[%clk 0:00:05.8]} 32... Rc4 {[%clk 0:00:21]} 33. a3 {[%clk
0:00:06.8]} 33... Rc3 {[%clk 0:00:22]} 34. Rb1 {[%clk 0:00:07.8]} 34... Bf6
{[%clk 0:00:21.9]} 35. Kg1 {[%clk 0:00:08.9]} 35... Be7 {[%clk 0:00:23.2]} 36.
Kf2 {[%clk 0:00:10]} 36... Rc2+ {[%clk 0:00:24]} 37. Kf1 {[%clk 0:00:09.8]}
37... Ra2 {[%clk 0:00:25.9]} 38. Nd4 {[%clk 0:00:08.4]} 38... Rxa3 {[%clk
0:00:26.3]} 39. Nc6 {[%clk 0:00:09.7]} 39... Bd6 {[%clk 0:00:26.9]} 40. Rc1
{[%clk 0:00:10.3]} 40... Ke8 {[%clk 0:00:27.4]} 41. Rc2 {[%clk 0:00:11.5]} 41...
Kd7 {[%clk 0:00:28.5]} 42. Na5 {[%clk 0:00:11.2]} 42... Bxb4 {[%clk 0:00:28.7]}
43. Nc6 {[%clk 0:00:11.7]} 43... Bd6 {[%clk 0:00:28.6]} 44. Nd4 {[%clk
0:00:12.9]} 44... Ra1+ {[%clk 0:00:29.5]} 45. Ke2 {[%clk 0:00:13.8]} 45... a5
{[%clk 0:00:30.6]} 46. Rb2 {[%clk 0:00:15]} 46... Bb4 {[%clk 0:00:30]} 47. Rc2
{[%clk 0:00:12.5]} 47... a4 {[%clk 0:00:30]} 48. Nb5 {[%clk 0:00:14]} 48... Bd6
{[%clk 0:00:30]} 49. Rb2 {[%clk 0:00:10.9]} 49... a3 {[%clk 0:00:30.7]} 50. Rd2
{[%clk 0:00:11.6]} 50... a2 {[%clk 0:00:30.6]} 51. Rc2 {[%clk 0:00:12.4]} 51...
Rg1 {[%clk 0:00:28.8]} 0-1

[Event "*** Titled Tuesday Blitz"]
[Site "Chess.com"]
[Date "2019.08.06"]
[Round "5"]
[White "M1711"]
[Black "payto1"]
[Result "1-0"]
[WhiteElo "2543"]
[BlackElo "2340"]
[TimeControl "180+2"]
[EndTime "14:05:51 PDT"]
[Termination "M1711 won by checkmate"]

1. d4 {[%clk 0:03:01.9]} 1... Nf6 {[%clk 0:02:59.9]} 2. Bg5 {[%clk 0:03:01.1]}
2... e6 {[%clk 0:02:58.9]} 3. e4 {[%clk 0:03:01.9]} 3... h6 {[%clk 0:02:59.6]}
4. Bxf6 {[%clk 0:02:59.6]} 4... Qxf6 {[%clk 0:03:00.4]} 5. c3 {[%clk 0:03:00.9]}
5... d6 {[%clk 0:02:59.7]} 6. Bd3 {[%clk 0:03:00.7]} 6... g5 {[%clk 0:03:01]} 7.
Ne2 {[%clk 0:03:00.4]} 7... Bg7 {[%clk 0:03:01.9]} 8. O-O {[%clk 0:02:59.5]}
8... e5 {[%clk 0:03:02.4]} 9. dxe5 {[%clk 0:02:37.7]} 9... dxe5 {[%clk 0:03:02]}
10. Ng3 {[%clk 0:02:28.5]} 10... Bf8 {[%clk 0:02:55.8]} 11. Nd2 {[%clk
0:02:27.2]} 11... Bc5 {[%clk 0:02:53.2]} 12. Nc4 {[%clk 0:02:27.6]} 12... Nc6
{[%clk 0:02:51]} 13. Ne3 {[%clk 0:02:27.3]} 13... Ne7 {[%clk 0:02:48.1]} 14. b4
{[%clk 0:02:26.4]} 14... Bb6 {[%clk 0:02:47.3]} 15. Qe2 {[%clk 0:02:11.9]} 15...
Be6 {[%clk 0:02:46.8]} 16. Bc4 {[%clk 0:02:09.6]} 16... O-O-O {[%clk 0:02:43.1]}
17. a4 {[%clk 0:02:04.7]} 17... Ng6 {[%clk 0:02:42.4]} 18. a5 {[%clk 0:01:57.4]}
18... Nf4 {[%clk 0:02:40.2]} 19. Qa2 {[%clk 0:01:57]} 19... Bxe3 {[%clk
0:02:30.3]} 20. fxe3 {[%clk 0:01:58.9]} 20... Bxc4 {[%clk 0:02:30.2]} 21. Qxc4
{[%clk 0:02:00.8]} 21... Qe6 {[%clk 0:02:30.6]} 22. Qc5 {[%clk 0:01:50.8]} 22...
Nd3 {[%clk 0:02:26]} 23. Qxa7 {[%clk 0:01:49.9]} 23... Rhf8 {[%clk 0:02:05.7]}
24. Rad1 {[%clk 0:01:50.2]} 24... Qa6 {[%clk 0:01:40.8]} 25. Qxa6 {[%clk
0:01:43.6]} 25... bxa6 {[%clk 0:01:42.7]} 26. Rf6 {[%clk 0:01:42.4]} 26... Nb2
{[%clk 0:01:29.1]} 27. Rxd8+ {[%clk 0:01:36.5]} 27... Rxd8 {[%clk 0:01:30.3]}
28. Rxa6 {[%clk 0:01:32.9]} 28... Rd3 {[%clk 0:01:12.6]} 29. Rc6 {[%clk
0:01:07]} 29... Na4 {[%clk 0:01:12.4]} 30. c4 {[%clk 0:01:00.3]} 30... Rxe3
{[%clk 0:01:10.7]} 31. a6 {[%clk 0:00:51.3]} 31... Nb6 {[%clk 0:01:01]} 32. c5
{[%clk 0:00:38.2]} 32... Nc4 {[%clk 0:00:58.5]} 33. Rxh6 {[%clk 0:00:30.8]}
33... Ra3 {[%clk 0:00:49.1]} 34. h3 {[%clk 0:00:27.9]} 34... Kd7 {[%clk
0:00:41.2]} 35. Nf5 {[%clk 0:00:27.1]} 35... c6 {[%clk 0:00:41.6]} 36. Rf6
{[%clk 0:00:15.1]} 36... Rxa6 {[%clk 0:00:40.5]} 37. Rxf7+ {[%clk 0:00:16.5]}
37... Ke6 {[%clk 0:00:42]} 38. Rc7 {[%clk 0:00:16.4]} 38... Nd2 {[%clk
0:00:40.1]} 39. Ng3 {[%clk 0:00:17.4]} 39... Nb1 {[%clk 0:00:31.1]} 40. Kf2
{[%clk 0:00:15.2]} 40... Nc3 {[%clk 0:00:31.9]} 41. Kf3 {[%clk 0:00:12.6]} 41...
Na2 {[%clk 0:00:30]} 42. Rb7 {[%clk 0:00:12.2]} 42... Ra3+ {[%clk 0:00:24.5]}
43. Kg4 {[%clk 0:00:13.2]} 43... Rb3 {[%clk 0:00:23.7]} 44. Nf5 {[%clk
0:00:07.1]} 44... Rxb4 {[%clk 0:00:22.2]} 45. Rxb4 {[%clk 0:00:07.7]} 45... Nxb4
{[%clk 0:00:22.7]} 46. Kxg5 {[%clk 0:00:08.1]} 46... Nd3 {[%clk 0:00:23.7]} 47.
h4 {[%clk 0:00:05.5]} 47... Nxc5 {[%clk 0:00:24.6]} 48. Ng3 {[%clk 0:00:05.3]}
48... Nd7 {[%clk 0:00:22]} 49. h5 {[%clk 0:00:04.8]} 49... c5 {[%clk 0:00:23]}
50. h6 {[%clk 0:00:05.8]} 50... Nf8 {[%clk 0:00:23.8]} 51. Kg4 {[%clk
0:00:04.1]} 51... c4 {[%clk 0:00:24.1]} 52. Kf3 {[%clk 0:00:05.4]} 52... Kf6
{[%clk 0:00:24.2]} 53. Ke2 {[%clk 0:00:05.6]} 53... Ne6 {[%clk 0:00:25]} 54. Nf5
{[%clk 0:00:05.2]} 54... Nf4+ {[%clk 0:00:24.7]} 55. Kd2 {[%clk 0:00:06.5]}
55... Nxg2 {[%clk 0:00:24.7]} 56. h7 {[%clk 0:00:07.3]} 56... Kg6 {[%clk
0:00:20.4]} 57. h8=Q {[%clk 0:00:09.2]} 57... c3+ {[%clk 0:00:20.7]} 58. Kxc3
{[%clk 0:00:09.8]} 58... Nh4 {[%clk 0:00:22]} 59. Qg7+ {[%clk 0:00:05.4]} 59...
Kh5 {[%clk 0:00:22.5]} 60. Ng3# {[%clk 0:00:07.3]} 1-0